Department Family,Entity,Date,Expense Type,Expense Area,Supplier,Transaction Number,Amount
DOH,London Ambulance Service NHS Trust,01/06/2017,External Training Services,International Paramedics,F.T.S. Solutions Ltd,331928,"27,507.60 "
DOH,London Ambulance Service NHS Trust,01/06/2017,Building Maint-Planned,Greenford Estates,A R Roofing Limited,332028,"31,711.20 "
DOH,London Ambulance Service NHS Trust,07/06/2017,Private Ambulance Hire,Ops Central - Private Amb,Srcl Ltd,332089,"43,761.34 "
DOH,London Ambulance Service NHS Trust,07/06/2017,Private Ambulance Hire,Ops Central - Private Amb,Srcl Ltd,332090,"44,007.93 "
DOH,London Ambulance Service NHS Trust,05/06/2017,Professional Fees,Transformation,Resource Advantage Ltd,332091,"26,235.00 "
DOH,London Ambulance Service NHS Trust,01/06/2017,Vehicles Additions,Capital,S & B Commercials Plc,332551,"46,396.80 "
DOH,London Ambulance Service NHS Trust,01/06/2017,Vehicles Additions,Capital,S & B Commercials Plc,332552,"46,396.80 "
DOH,London Ambulance Service NHS Trust,01/06/2017,Private Ambulance Hire,Ops Central - Private Amb,St John Ambulance Londonprince,332571,"26,295.87 "
DOH,London Ambulance Service NHS Trust,01/06/2017,Computer Hardware,Capital,Dell Computer Corporation Ltd,332712,"29,106.55 "
DOH,London Ambulance Service NHS Trust,01/06/2017,Blanket Purchase,Supply & Material Management,Med-I-Pant Uk Ltd,332742,"59,400.00 "
DOH,London Ambulance Service NHS Trust,07/06/2017,Private Ambulance Hire,Ops Central - Private Amb,Medical Services Ltd,332853,"53,025.72 "
DOH,London Ambulance Service NHS Trust,14/06/2017,General Maintenance,Cbrn Unit,Respirex International,332880,"75,787.54 "
DOH,London Ambulance Service NHS Trust,01/06/2017,Computer Software Maintenance,Systems,Software Box Ltd,332885,"40,185.60 "
DOH,London Ambulance Service NHS Trust,07/06/2017,Medical & Surgical Items,South Area Managed Stores,Physio-Control Uk Sales Ltd,333607,"43,872.00 "
DOH,London Ambulance Service NHS Trust,01/06/2017,Vehicles Additions,Capital,S & B Commercials Plc,333626,"46,396.80 "
DOH,London Ambulance Service NHS Trust,21/06/2017,Vehicles,Capital,S & B Commercials Plc,334024,"36,855.60 "
DOH,London Ambulance Service NHS Trust,14/06/2017,Rent,Pocock Street,Tlg Llc,334048,"56,250.30 "
DOH,London Ambulance Service NHS Trust,14/06/2017,Rent,Southwark Bridge Road,Zurich Assurance Ltd,334085,"32,018.40 "
DOH,London Ambulance Service NHS Trust,07/06/2017,Rent,Nhs 111 Relocation,Bilfinger Gva (Pma321),334092,"60,128.26 "
DOH,London Ambulance Service NHS Trust,07/06/2017,Service Charges,Nhs 111 Relocation,Bilfinger Gva (Pma321),334092,"25,572.00 "
DOH,London Ambulance Service NHS Trust,14/06/2017,Cleaning Of Premises,Estate Management,Lakethorne Ltd,334134,"87,409.13 "
DOH,London Ambulance Service NHS Trust,07/06/2017,Private Ambulance Hire,Ops Central - Private Amb,Medical Services Ltd,334237,"55,802.39 "
DOH,London Ambulance Service NHS Trust,07/06/2017,Computer Hardware,Capital,Daisy Corporate Services,334324,"160,245.36 "
DOH,London Ambulance Service NHS Trust,07/06/2017,Data Network Rental,Networks,Bt Global Services,334508,"31,257.17 "
DOH,London Ambulance Service NHS Trust,07/06/2017,Subscriptions To Associations,Trust Management,Association Of Ambulance Chief Executives,334583,"30,000.00 "
DOH,London Ambulance Service NHS Trust,14/06/2017,Private Ambulance Hire,Ops Central - Private Amb,Srcl Ltd,334614,"44,138.52 "
DOH,London Ambulance Service NHS Trust,07/06/2017,Consultancy Fees,Im&T Management,Pa Consulting Services Ltd,334615,"86,736.00 "
DOH,London Ambulance Service NHS Trust,07/06/2017,Cleaning Of Vehicles Makeready,Veh Prep Service Expansion,Interserve Hospital Services,334684,"165,042.00 "
DOH,London Ambulance Service NHS Trust,07/06/2017,Private Ambulance Hire,Ops Central - Private Amb,Medical Services Ltd,334687,"60,311.29 "
DOH,London Ambulance Service NHS Trust,07/06/2017,Private Ambulance Hire,Ops Central - Private Amb,Medical Services Ltd,334688,"60,223.26 "
DOH,London Ambulance Service NHS Trust,07/06/2017,Contract Labour,Vehicle Resouce Centre,Churchill Contract Services Ltd,334689,"25,632.29 "
DOH,London Ambulance Service NHS Trust,07/06/2017,Contract Labour,Vehicle Resouce Centre,Churchill Contract Services Ltd,334690,"27,801.79 "
DOH,London Ambulance Service NHS Trust,07/06/2017,Agency Nurses,111 Operations,Hays Specialist Recruitment Ltd,334694,"30,086.51 "
DOH,London Ambulance Service NHS Trust,07/06/2017,Tyres,Fleet Support Services,Ats Euromaster Ltd,334701,"43,706.46 "
DOH,London Ambulance Service NHS Trust,14/06/2017,Electricity,Estate Management,British Gas,334889,"41,556.12 "
DOH,London Ambulance Service NHS Trust,21/06/2017,Ambulance Equipment,Ambulance Procurement,Mangar International Ltd,334973,"70,920.00 "
DOH,London Ambulance Service NHS Trust,07/06/2017,Data Network Rental,Networks,Bt Plc,334997,"161,686.65 "
DOH,London Ambulance Service NHS Trust,21/06/2017,Rent,Hazardous Area Response Team,Jones Lang Lasalle (Rent Only),335033,"58,764.00 "
DOH,London Ambulance Service NHS Trust,21/06/2017,Private Ambulance Hire,Ops Central - Private Amb,Srcl Ltd,335048,"49,441.27 "
DOH,London Ambulance Service NHS Trust,14/06/2017,Consultancy Fees,Im&T Management,Pa Consulting Services Ltd,335049,"48,000.00 "
DOH,London Ambulance Service NHS Trust,14/06/2017,Private Ambulance Hire,Ops Central - Private Amb,Srcl Ltd,335590,"47,385.34 "
DOH,London Ambulance Service NHS Trust,09/06/2017,Taxis & Mini Cabs,Sub-Contracted Transport,Addison Lee,335670,"40,985.54 "
DOH,London Ambulance Service NHS Trust,09/06/2017,Taxis & Mini Cabs,Sub-Contracted Transport,Addison Lee,335671,"41,858.29 "
DOH,London Ambulance Service NHS Trust,14/06/2017,Computer Hardware,Capital,Vodafone Corporate Limited,335673,"33,372.00 "
DOH,London Ambulance Service NHS Trust,14/06/2017,Data Network Rental,Non Emergency Transport,Vodafone Corporate Limited,335673,"28,188.00 "
DOH,London Ambulance Service NHS Trust,14/06/2017,Consultancy Fees,Nhs 111 Bid,Pa Consulting Services Ltd,335960,"58,800.00 "
DOH,London Ambulance Service NHS Trust,14/06/2017,Professional Fees,Trust Management,Pa Consulting Services Ltd,335961,"51,120.00 "
DOH,London Ambulance Service NHS Trust,14/06/2017,Consultancy Fees,Im&T Management,Pa Consulting Services Ltd,335963,"86,736.00 "
DOH,London Ambulance Service NHS Trust,21/06/2017,Cleaning Of Vehicles Makeready,Veh Prep Service Expansion,Interserve Hospital Services,335984,"232,881.02 "
DOH,London Ambulance Service NHS Trust,14/06/2017,Private Ambulance Hire,Ops Central - Private Amb,Medical Services Ltd,335986,"54,932.43 "
DOH,London Ambulance Service NHS Trust,21/06/2017,Subscriptions To Associations,Director Of Corporate Services,Care Quality Commission,336242,"245,652.00 "
DOH,London Ambulance Service NHS Trust,21/06/2017,External Training Services,Eac Training,F.T.S. Solutions Ltd,336504,"35,658.00 "
DOH,London Ambulance Service NHS Trust,21/06/2017,Private Ambulance Hire,Ops Central - Private Amb,Srcl Ltd,336585,"38,806.00 "
DOH,London Ambulance Service NHS Trust,21/06/2017,Agency Nurses,111 Operations,Hays Specialist Recruitment Ltd,336630,"38,659.27 "
DOH,London Ambulance Service NHS Trust,21/06/2017,Private Ambulance Hire,Ops Central - Private Amb,St John Ambulance Londonprince,336707,"28,090.82 "
DOH,London Ambulance Service NHS Trust,21/06/2017,Rent,Maritime House Training Centre,Dooba Investments Iii Limited,336850,"26,076.60 "
DOH,London Ambulance Service NHS Trust,21/06/2017,Service Charges,Maritime House Training Centre,Dooba Investments Iii Limited,336850,"11,845.91 "
DOH,London Ambulance Service NHS Trust,21/06/2017,Rent,Maritime House Training Centre,Dooba Investments Iii Limited,336851,"26,512.20 "
DOH,London Ambulance Service NHS Trust,21/06/2017,Service Charges,Maritime House Training Centre,Dooba Investments Iii Limited,336851,"12,570.60 "
DOH,London Ambulance Service NHS Trust,21/06/2017,Rent,Maritime House Training Centre,Dooba Investments Iii Limited,336852,"26,512.20 "
DOH,London Ambulance Service NHS Trust,21/06/2017,Service Charges,Maritime House Training Centre,Dooba Investments Iii Limited,336852,"12,570.60 "
DOH,London Ambulance Service NHS Trust,20/06/2017,Professional Fees,Sm - Estates Strategy,Knight Frank Llp,336925,"43,635.00 "
DOH,London Ambulance Service NHS Trust,21/06/2017,Private Ambulance Hire,Ops Central - Private Amb,St John Ambulance Londonprince,336961,"25,384.14 "
DOH,London Ambulance Service NHS Trust,21/06/2017,Cac Tools Maintenance,Cad Support,Northgate Public Services (Uk) Ltd,336969,"47,519.27 "
DOH,London Ambulance Service NHS Trust,01/06/2017,Ensign Insurance Debtor,Control Accounts,QBE International Insurance T/A Ensign,44620,"270,690.83 "
DOH,London Ambulance Service NHS Trust,27/06/2017,Medical Gas,Director Of Ops,British Oxygen,45100,"131,698.32 "
DOH,London Ambulance Service NHS Trust,01/06/2017,Fuel,Director Of Ops,BP Oil,44620,"195,872.96 "
DOH,London Ambulance Service NHS Trust,21/06/2017,Child Care Arrangements,Payroll,Computerserve Vouchers,44886,"32,114.27 "
DOH,London Ambulance Service NHS Trust,15/06/2017,CNST Contributions,Legal Services,NHSLA,45221,"278,525.00 "
DOH,London Ambulance Service NHS Trust,15/06/2017,Liability to 3rd Party Scheme,Legal Services,NHSLA,45221,"35,774.10 "
DOH,London Ambulance Service NHS Trust,15/06/2017,Property Expenses Scheme,Legal Services,NHSLA,45221,907.20 
DOH,London Ambulance Service NHS Trust,15/06/2017,Fuel,Director Of Ops,BP Oil,44842,"216,901.19 "
DOH,London Ambulance Service NHS Trust,30/06/2017,Fuel,Director Of Ops,BP Oil,45372,"201,169.18 "
